[Event "*** Titled Tuesday Blitz"]
[Site "Chess.com"]
[Date "2020.11.10"]
[Round "8"]
[White "ARTHURMOTIVATOR"]
[Black "Mikasinski"]
[Result "0-1"]
[WhiteElo "2358"]
[BlackElo "2487"]
[TimeControl "180+1"]
[EndTime "11:35:12 PST"]
[Termination "Mikasinski won on time"]

1. e4 {[%clk 0:03:00.9]} 1... c5 {[%clk 0:02:58.1]} 2. b3 {[%clk 0:02:58.6]}
2... Nc6 {[%clk 0:02:56.9]} 3. Bb2 {[%clk 0:02:56.4]} 3... a6 {[%clk 0:02:52.5]}
4. Nf3 {[%clk 0:02:51.1]} 4... d6 {[%clk 0:02:51.6]} 5. d4 {[%clk 0:02:50.2]}
5... cxd4 {[%clk 0:02:49.5]} 6. Nxd4 {[%clk 0:02:51.1]} 6... Nf6 {[%clk
0:02:49.3]} 7. Bd3 {[%clk 0:02:47.5]} 7... Ne5 {[%clk 0:02:46.7]} 8. O-O {[%clk
0:02:39.9]} 8... g6 {[%clk 0:02:40.3]} 9. f4 {[%clk 0:02:28.8]} 9... Nxd3 {[%clk
0:02:39]} 10. cxd3 {[%clk 0:02:29.7]} 10... Bg7 {[%clk 0:02:37.6]} 11. f5 {[%clk
0:02:25.7]} 11... Qb6 {[%clk 0:01:52.6]} 12. Nd2 {[%clk 0:01:47.1]} 12... Nd7
{[%clk 0:01:44.1]} 13. Nf3 {[%clk 0:01:40.1]} 13... Ne5 {[%clk 0:01:42.8]} 14.
Kh1 {[%clk 0:01:11.6]} 14... Nxf3 {[%clk 0:01:41.8]} 15. Qxf3 {[%clk 0:01:10.4]}
15... Bxd4 {[%clk 0:01:38.7]} 16. fxg6 {[%clk 0:01:06.3]} 16... fxg6 {[%clk
0:01:34]} 17. Qf7+ {[%clk 0:01:00.6]} 17... Kd8 {[%clk 0:01:34.1]} 18. Bxd4
{[%clk 0:00:54.6]} 18... Qxd4 {[%clk 0:01:34]} 19. Rac1 {[%clk 0:00:52.3]} 19...
Bd7 {[%clk 0:01:29]} 20. e5 {[%clk 0:00:44.4]} 20... dxe5 {[%clk 0:01:17.8]} 21.
Rc4 {[%clk 0:00:35.3]} 21... Qd6 {[%clk 0:01:01.7]} 22. d4 {[%clk 0:00:30.8]}
22... e4 {[%clk 0:00:50.8]} 23. d5 {[%clk 0:00:24.6]} 23... Bb5 {[%clk
0:00:47.5]} 24. Qg7 {[%clk 0:00:22.7]} 24... Bxc4 {[%clk 0:00:37.8]} 25. Qxh8+
{[%clk 0:00:18.9]} 25... Kd7 {[%clk 0:00:38]} 26. Qxa8 {[%clk 0:00:17.7]} 26...
Bxf1 {[%clk 0:00:37.6]} 27. Qxb7+ {[%clk 0:00:17.1]} 27... Qc7 {[%clk
0:00:37.2]} 28. Qb4 {[%clk 0:00:12.8]} 28... Bb5 {[%clk 0:00:34]} 29. h3 {[%clk
0:00:10.7]} 29... Qc1+ {[%clk 0:00:33.4]} 30. Kh2 {[%clk 0:00:10.3]} 30... Qf4+
{[%clk 0:00:33.7]} 31. Kh1 {[%clk 0:00:10.6]} 31... Qd6 {[%clk 0:00:09.4]} 32.
Qxe4 {[%clk 0:00:09.3]} 32... a5 {[%clk 0:00:09]} 33. Qg4+ {[%clk 0:00:08.6]}
33... Kd8 {[%clk 0:00:08.8]} 34. Qe4 {[%clk 0:00:09.5]} 34... Bd7 {[%clk
0:00:08.4]} 35. Qd4 {[%clk 0:00:09.2]} 35... e5 {[%clk 0:00:06.8]} 36. Qd2
{[%clk 0:00:04.8]} 36... Qb4 {[%clk 0:00:04.7]} 37. Qg5+ {[%clk 0:00:04.5]}
37... Qe7 {[%clk 0:00:05.1]} 38. Qd2 {[%clk 0:00:04.1]} 38... Qc5 {[%clk
0:00:05.4]} 39. Qg5+ {[%clk 0:00:04]} 39... Qe7 {[%clk 0:00:05.4]} 40. Qd2
{[%clk 0:00:04.1]} 40... e4 {[%clk 0:00:04.4]} 41. d6 {[%clk 0:00:03.7]} 41...
Qe5 {[%clk 0:00:03.8]} 42. Qd1 {[%clk 0:00:02.7]} 42... e3 {[%clk 0:00:03.6]}
43. Qe2 {[%clk 0:00:03]} 43... Qxd6 {[%clk 0:00:02.2]} 44. Qxe3 {[%clk
0:00:03.3]} 44... Qd1+ {[%clk 0:00:02.9]} 45. Kh2 {[%clk 0:00:03.2]} 45... Qd6+
{[%clk 0:00:03.6]} 46. Kh1 {[%clk 0:00:04.1]} 46... Bc6 {[%clk 0:00:04.2]} 47.
Qg5+ {[%clk 0:00:03.5]} 47... Kc7 {[%clk 0:00:04.2]} 48. Qe3 {[%clk 0:00:03.3]}
48... Qd1+ {[%clk 0:00:03.8]} 49. Kh2 {[%clk 0:00:02.7]} 49... Qd6+ {[%clk
0:00:04.4]} 50. Kh1 {[%clk 0:00:03.6]} 50... Kb7 {[%clk 0:00:04.8]} 51. Qc3
{[%clk 0:00:02.9]} 51... Qd5 {[%clk 0:00:04.8]} 52. Qg7+ {[%clk 0:00:03.3]}
52... Ka6 {[%clk 0:00:05.3]} 53. Qb2 {[%clk 0:00:03.6]} 53... Qe4 {[%clk
0:00:04.4]} 54. Qf2 {[%clk 0:00:03.3]} 54... h5 {[%clk 0:00:04.2]} 55. Qf1+
{[%clk 0:00:03.5]} 55... Kb6 {[%clk 0:00:03.8]} 56. Qf2+ {[%clk 0:00:03.9]}
56... Ka6 {[%clk 0:00:04.2]} 57. Qf1+ {[%clk 0:00:04]} 57... Kb7 {[%clk
0:00:04.8]} 58. Qf7+ {[%clk 0:00:03.6]} 58... Ka8 {[%clk 0:00:05.4]} 59. Qf8+
{[%clk 0:00:03.5]} 59... Kb7 {[%clk 0:00:05.6]} 60. Qf7+ {[%clk 0:00:03.9]}
60... Kc8 {[%clk 0:00:06.1]} 61. Qf8+ {[%clk 0:00:04.1]} 61... Kd7 {[%clk
0:00:06.3]} 62. Qf7+ {[%clk 0:00:04.4]} 62... Kd6 {[%clk 0:00:06.9]} 63. Qf6+
{[%clk 0:00:04.3]} 63... Kc5 {[%clk 0:00:06.9]} 64. Qf2+ {[%clk 0:00:04.2]}
64... Qd4 {[%clk 0:00:04.6]} 65. Qc2+ {[%clk 0:00:03.7]} 65... Kb6 {[%clk
0:00:03.9]} 66. Qxg6 {[%clk 0:00:03.8]} 66... h4 {[%clk 0:00:02.7]} 67. Qc2
{[%clk 0:00:03.5]} 67... Qf4 {[%clk 0:00:02.6]} 68. Qe2 {[%clk 0:00:03.1]} 68...
Qg3 {[%clk 0:00:02.9]} 69. Qd2 {[%clk 0:00:03.2]} 69... Qxh3+ {[%clk 0:00:03.3]}
70. Kg1 {[%clk 0:00:02.8]} 70... Qg3 {[%clk 0:00:03.8]} 71. Qd4+ {[%clk
0:00:02.9]} 71... Kb7 {[%clk 0:00:03.8]} 72. Qc5 {[%clk 0:00:01.5]} 72... h3
{[%clk 0:00:04]} 73. Qe7+ {[%clk 0:00:01.3]} 73... Kb6 {[%clk 0:00:04.2]} 0-1

[Event "*** Titled Tuesday Blitz"]
[Site "Chess.com"]
[Date "2020.11.10"]
[Round "8"]
[White "MarcoRiehle"]
[Black "GameOverBro"]
[Result "1-0"]
[WhiteElo "2680"]
[BlackElo "2522"]
[TimeControl "180+1"]
[EndTime "11:35:13 PST"]
[Termination "MarcoRiehle won by resignation"]

1. e4 {[%clk 0:03:00.9]} 1... d6 {[%clk 0:02:59.9]} 2. d4 {[%clk 0:02:58.1]}
2... Nf6 {[%clk 0:02:59.9]} 3. f3 {[%clk 0:02:57.5]} 3... e5 {[%clk 0:02:59.9]}
4. d5 {[%clk 0:02:57]} 4... c6 {[%clk 0:02:52.7]} 5. c4 {[%clk 0:02:56.4]} 5...
h5 {[%clk 0:02:52.4]} 6. Be3 {[%clk 0:02:55.5]} 6... a6 {[%clk 0:02:51.3]} 7.
Qd2 {[%clk 0:02:55.3]} 7... Be7 {[%clk 0:02:51.3]} 8. Nc3 {[%clk 0:02:54.1]}
8... Nbd7 {[%clk 0:02:51.3]} 9. Bd3 {[%clk 0:02:53.8]} 9... Qc7 {[%clk
0:02:44.2]} 10. Nge2 {[%clk 0:02:53.2]} 10... Rb8 {[%clk 0:02:34.8]} 11. O-O
{[%clk 0:02:51.8]} 11... c5 {[%clk 0:02:22.2]} 12. a3 {[%clk 0:02:47.5]} 12...
Nf8 {[%clk 0:02:18.8]} 13. b4 {[%clk 0:02:46.7]} 13... N6d7 {[%clk 0:02:18.7]}
14. Rab1 {[%clk 0:02:39.6]} 14... Ng6 {[%clk 0:02:18.5]} 15. Bc2 {[%clk
0:02:38.4]} 15... O-O {[%clk 0:02:17.5]} 16. Ba4 {[%clk 0:02:38.1]} 16... b6
{[%clk 0:02:10.8]} 17. Bxd7 {[%clk 0:02:36.8]} 17... Bxd7 {[%clk 0:02:11.7]} 18.
bxc5 {[%clk 0:02:37.2]} 18... bxc5 {[%clk 0:02:11.3]} 19. Qc2 {[%clk 0:02:29.3]}
19... h4 {[%clk 0:02:02.8]} 20. Rxb8 {[%clk 0:02:20.9]} 20... Qxb8 {[%clk
0:02:02.6]} 21. Rb1 {[%clk 0:02:21.3]} 21... Qd8 {[%clk 0:02:03]} 22. Qb3 {[%clk
0:02:17.2]} 22... Bg5 {[%clk 0:02:02.9]} 23. Bf2 {[%clk 0:02:16.4]} 23... f5
{[%clk 0:02:02.2]} 24. Qb6 {[%clk 0:02:13.1]} 24... Qf6 {[%clk 0:02:00.4]} 25.
Qxa6 {[%clk 0:02:10.9]} 25... Bd2 {[%clk 0:01:53.7]} 26. Rb6 {[%clk 0:02:00.3]}
26... Nf4 {[%clk 0:01:44.3]} 27. Rxd6 {[%clk 0:01:48.1]} 27... Qg5 {[%clk
0:01:44.3]} 28. Nxf4 {[%clk 0:01:48.1]} 28... exf4 {[%clk 0:01:38.2]} 29. Rxd7
{[%clk 0:01:40.4]} 29... h3 {[%clk 0:01:32.9]} 30. g3 {[%clk 0:01:29.3]} 30...
fxg3 {[%clk 0:01:32.5]} 31. hxg3 {[%clk 0:01:28.3]} 31... Bxc3 {[%clk
0:01:28.9]} 32. Qe6+ {[%clk 0:01:17]} 32... Kh8 {[%clk 0:01:24.8]} 33. Kh2
{[%clk 0:01:05.5]} 33... Qd2 {[%clk 0:01:12.1]} 34. exf5 {[%clk 0:01:01.6]}
34... Qxf2+ {[%clk 0:01:10.7]} 35. Kxh3 {[%clk 0:01:01.9]} 35... Qxf3 {[%clk
0:01:01.6]} 36. Qg6 {[%clk 0:00:55.7]} 36... Qh1+ {[%clk 0:00:54.9]} 37. Kg4
{[%clk 0:00:55.7]} 37... Qe4+ {[%clk 0:00:54.6]} 38. Kh3 {[%clk 0:00:55.6]}
38... Qxf5+ {[%clk 0:00:47.2]} 39. Qxf5 {[%clk 0:00:54.9]} 39... Rxf5 {[%clk
0:00:48.1]} 40. Rc7 {[%clk 0:00:51.8]} 40... Be5 {[%clk 0:00:33]} 41. Rxc5
{[%clk 0:00:48.1]} 41... Rf3 {[%clk 0:00:33.3]} 42. Kg4 {[%clk 0:00:46.8]} 42...
Rxg3+ {[%clk 0:00:32.1]} 43. Kf5 {[%clk 0:00:47.3]} 43... Bf6 {[%clk 0:00:28.6]}
44. a4 {[%clk 0:00:43.7]} 44... Kh7 {[%clk 0:00:21.4]} 45. a5 {[%clk 0:00:33.7]}
45... Kh6 {[%clk 0:00:19.1]} 46. Rc8 {[%clk 0:00:32.6]} 46... Rf3+ {[%clk
0:00:16.2]} 47. Ke6 {[%clk 0:00:31.7]} 47... Ra3 {[%clk 0:00:15.5]} 48. Ra8
{[%clk 0:00:30.3]} 48... Re3+ {[%clk 0:00:13]} 49. Kf5 {[%clk 0:00:29.3]} 49...
Rf3+ {[%clk 0:00:12.7]} 50. Ke6 {[%clk 0:00:29.6]} 50... Re3+ {[%clk 0:00:12.9]}
51. Kd6 {[%clk 0:00:27.8]} 51... Bd4 {[%clk 0:00:11.2]} 52. c5 {[%clk 0:00:26]}
52... g5 {[%clk 0:00:09.6]} 53. a6 {[%clk 0:00:23.5]} 53... Rc3 {[%clk
0:00:07.5]} 54. c6 {[%clk 0:00:22.9]} 54... g4 {[%clk 0:00:07.5]} 55. a7 {[%clk
0:00:18.2]} 55... g3 {[%clk 0:00:07.2]} 56. Rh8+ {[%clk 0:00:16.8]} 56... Bxh8
{[%clk 0:00:06.1]} 57. a8=Q {[%clk 0:00:17.7]} 57... Bf6 {[%clk 0:00:04.9]} 58.
Qf8+ {[%clk 0:00:16.6]} 58... Kg6 {[%clk 0:00:05]} 59. Qg8+ {[%clk 0:00:17]}
59... Kf5 {[%clk 0:00:05.3]} 60. Qe6+ {[%clk 0:00:17.4]} 60... Kg5 {[%clk
0:00:05.7]} 61. c7 {[%clk 0:00:17.3]} 61... g2 {[%clk 0:00:03.5]} 62. Qg8+
{[%clk 0:00:17.8]} 62... Kf4 {[%clk 0:00:01.9]} 63. Qxg2 {[%clk 0:00:17.5]}
63... Be5+ {[%clk 0:00:02.8]} 64. Ke6 {[%clk 0:00:17.9]} 64... Rxc7 {[%clk
0:00:03]} 65. d6 {[%clk 0:00:18.2]} 65... Bxd6 {[%clk 0:00:02.8]} 66. Kxd6
{[%clk 0:00:17.3]} 66... Rc3 {[%clk 0:00:03.4]} 67. Qf2+ {[%clk 0:00:16.4]}
67... Rf3 {[%clk 0:00:02.8]} 68. Qd4+ {[%clk 0:00:15.7]} 68... Kg3 {[%clk
0:00:03]} 69. Ke5 {[%clk 0:00:16.1]} 69... Rf2 {[%clk 0:00:03.3]} 70. Qd3+
{[%clk 0:00:15]} 70... Kg2 {[%clk 0:00:04.2]} 71. Ke4 {[%clk 0:00:14.6]} 71...
Rf7 {[%clk 0:00:03.9]} 72. Qc2+ {[%clk 0:00:14]} 72... Rf2 {[%clk 0:00:04.8]}
73. Qc6 {[%clk 0:00:13.4]} 73... Rf3 {[%clk 0:00:04.2]} 74. Qg6+ {[%clk
0:00:12.6]} 74... Rg3 {[%clk 0:00:05.1]} 75. Qf5 {[%clk 0:00:12.5]} 75... Rg8
{[%clk 0:00:05.1]} 76. Qf3+ {[%clk 0:00:12.1]} 76... Kg1 {[%clk 0:00:06]} 77.
Qe3+ {[%clk 0:00:12.2]} 77... Kh1 {[%clk 0:00:06]} 78. Qe1+ {[%clk 0:00:11.8]}
78... Kh2 {[%clk 0:00:06.2]} 79. Qd2+ {[%clk 0:00:10.9]} 79... Rg2 {[%clk
0:00:07.1]} 80. Qd1 {[%clk 0:00:10.5]} 80... Kh3 {[%clk 0:00:08]} 81. Kf3 {[%clk
0:00:10]} 81... Rg3+ {[%clk 0:00:08.9]} 82. Kf4 {[%clk 0:00:10.4]} 82... Rg4+
{[%clk 0:00:09.3]} 83. Qxg4+ {[%clk 0:00:10.3]} 1-0

[Event "*** Titled Tuesday Blitz"]
[Site "Chess.com"]
[Date "2020.11.10"]
[Round "8"]
[White "MarceloPlaya"]
[Black "zala02"]
[Result "0-1"]
[WhiteElo "2281"]
[BlackElo "2159"]
[TimeControl "180+1"]
[EndTime "11:35:17 PST"]
[Termination "zala02 won on time"]

1. e4 {[%clk 0:03:00.9]} 1... c5 {[%clk 0:00:56.6]} 2. Nf3 {[%clk 0:02:58.7]}
2... Nc6 {[%clk 0:00:56.7]} 3. d4 {[%clk 0:02:58.3]} 3... cxd4 {[%clk
0:00:57.4]} 4. Nxd4 {[%clk 0:02:58.4]} 4... Nf6 {[%clk 0:00:58]} 5. Nc3 {[%clk
0:02:58.3]} 5... e5 {[%clk 0:00:58.4]} 6. Ndb5 {[%clk 0:02:58.1]} 6... d6 {[%clk
0:00:58.9]} 7. Bg5 {[%clk 0:02:57.1]} 7... a6 {[%clk 0:00:59.4]} 8. Na3 {[%clk
0:02:56.8]} 8... b5 {[%clk 0:00:59.9]} 9. Nd5 {[%clk 0:02:56.6]} 9... Be7 {[%clk
0:01:00.2]} 10. Nxe7 {[%clk 0:02:56.8]} 10... Qxe7 {[%clk 0:00:56.8]} 11. Bd3
{[%clk 0:02:55.8]} 11... O-O {[%clk 0:00:54.7]} 12. O-O {[%clk 0:02:51.2]} 12...
Be6 {[%clk 0:00:54.5]} 13. c4 {[%clk 0:02:49.9]} 13... b4 {[%clk 0:00:52.6]} 14.
Nc2 {[%clk 0:02:48.7]} 14... h6 {[%clk 0:00:52.8]} 15. Bxf6 {[%clk 0:02:46.3]}
15... Qxf6 {[%clk 0:00:52.6]} 16. Ne3 {[%clk 0:02:45.6]} 16... Nd4 {[%clk
0:00:50.6]} 17. Nd5 {[%clk 0:02:41.9]} 17... Bxd5 {[%clk 0:00:49]} 18. cxd5
{[%clk 0:02:41.1]} 18... a5 {[%clk 0:00:48.4]} 19. Rc1 {[%clk 0:02:35.5]} 19...
Rfc8 {[%clk 0:00:48.1]} 20. Rxc8+ {[%clk 0:02:27.9]} 20... Rxc8 {[%clk 0:00:49]}
21. Qa4 {[%clk 0:02:21]} 21... Qd8 {[%clk 0:00:47.1]} 22. h3 {[%clk 0:02:05.4]}
22... Qb6 {[%clk 0:00:46.6]} 23. Qd7 {[%clk 0:01:59.2]} 23... Qc5 {[%clk
0:00:39.5]} 24. Kh2 {[%clk 0:01:53.5]} 24... g6 {[%clk 0:00:38.3]} 25. f4 {[%clk
0:01:49.4]} 25... Qc7 {[%clk 0:00:28.1]} 26. Qg4 {[%clk 0:01:46.7]} 26... Re8
{[%clk 0:00:20.7]} 27. f5 {[%clk 0:01:43.7]} 27... Kh7 {[%clk 0:00:21]} 28.
fxg6+ {[%clk 0:01:08.1]} 28... fxg6 {[%clk 0:00:21.9]} 29. Rf6 {[%clk
0:01:07.8]} 29... Rg8 {[%clk 0:00:19.9]} 30. h4 {[%clk 0:01:01.1]} 30... h5
{[%clk 0:00:19.4]} 31. Qg5 {[%clk 0:00:54.8]} 31... Rg7 {[%clk 0:00:19]} 32. g4
{[%clk 0:00:34.4]} 32... hxg4 {[%clk 0:00:16.1]} 33. Qxg4 {[%clk 0:00:31.7]}
33... a4 {[%clk 0:00:11.9]} 34. h5 {[%clk 0:00:28.6]} 34... gxh5 {[%clk
0:00:09.4]} 35. Qxh5+ {[%clk 0:00:28.3]} 35... Kg8 {[%clk 0:00:09.7]} 36. Qe8+
{[%clk 0:00:27.2]} 36... Kh7 {[%clk 0:00:10.1]} 37. Rf8 {[%clk 0:00:22.8]} 37...
Kh6 {[%clk 0:00:03.2]} 38. Rh8+ {[%clk 0:00:22.4]} 38... Kg5 {[%clk 0:00:03.5]}
39. Rh3 {[%clk 0:00:19]} 39... Rh7 {[%clk 0:00:02.7]} 40. Qg8+ {[%clk
0:00:16.3]} 40... Rg7 {[%clk 0:00:02.1]} 41. Rg3+ {[%clk 0:00:15.7]} 41... Kf6
{[%clk 0:00:02.5]} 42. Qh8 {[%clk 0:00:13.9]} 42... Qf7 {[%clk 0:00:02.4]} 43.
Qh6+ {[%clk 0:00:13.2]} 43... Rg6 {[%clk 0:00:02.8]} 44. Qh4+ {[%clk 0:00:12.9]}
44... Kg7 {[%clk 0:00:02.9]} 45. Rxg6+ {[%clk 0:00:10.8]} 45... Qxg6 {[%clk
0:00:03.8]} 46. Qe7+ {[%clk 0:00:10.6]} 46... Kh6 {[%clk 0:00:03.9]} 47. Qf8+
{[%clk 0:00:10.2]} 47... Kg5 {[%clk 0:00:04]} 48. Qf2 {[%clk 0:00:08.5]} 48...
Qh5+ {[%clk 0:00:04.1]} 49. Kg2 {[%clk 0:00:07.6]} 49... Qg4+ {[%clk 0:00:04.5]}
50. Qg3 {[%clk 0:00:07.6]} 50... Qxg3+ {[%clk 0:00:03.9]} 51. Kxg3 {[%clk
0:00:07.9]} 51... a3 {[%clk 0:00:02.6]} 52. bxa3 {[%clk 0:00:07.1]} 52... bxa3
{[%clk 0:00:03.5]} 53. Bc4 {[%clk 0:00:07.1]} 53... Nc2 {[%clk 0:00:03.4]} 54.
Bb3 {[%clk 0:00:06.3]} 54... Nd4 {[%clk 0:00:03.4]} 55. Bc4 {[%clk 0:00:05.5]}
55... Nc2 {[%clk 0:00:03.6]} 56. Kf3 {[%clk 0:00:05]} 56... Nb4 {[%clk
0:00:03.4]} 57. Ke3 {[%clk 0:00:04]} 57... Nc2+ {[%clk 0:00:03.5]} 58. Kd2
{[%clk 0:00:03.3]} 58... Nd4 {[%clk 0:00:03.8]} 59. Kc3 {[%clk 0:00:03.2]} 59...
Kf4 {[%clk 0:00:04.2]} 60. Bd3 {[%clk 0:00:03.4]} 60... Ke3 {[%clk 0:00:04.5]}
61. Bb1 {[%clk 0:00:03.4]} 61... Ke2 {[%clk 0:00:03.2]} 62. Kb4 {[%clk
0:00:03.6]} 62... Kd2 {[%clk 0:00:03.7]} 63. Kxa3 {[%clk 0:00:03.7]} 63... Kc1
{[%clk 0:00:04.3]} 64. Bd3 {[%clk 0:00:02]} 64... Kd2 {[%clk 0:00:04.8]} 65. Bc4
{[%clk 0:00:02]} 65... Kc3 {[%clk 0:00:04.1]} 66. Bb3 {[%clk 0:00:02.3]} 66...
Ne2 {[%clk 0:00:03.8]} 67. Ka4 {[%clk 0:00:02.5]} 67... Ng3 {[%clk 0:00:03.2]}
68. Kb5 {[%clk 0:00:02.6]} 68... Nxe4 {[%clk 0:00:03.5]} 69. Kc6 {[%clk
0:00:03.1]} 69... Kd4 {[%clk 0:00:03.6]} 70. a4 {[%clk 0:00:02.1]} 70... Nc5
{[%clk 0:00:03.8]} 71. a5 {[%clk 0:00:01.7]} 71... Nxb3 {[%clk 0:00:02.9]} 72.
a6 {[%clk 0:00:01.4]} 72... e4 {[%clk 0:00:03.5]} 73. a7 {[%clk 0:00:01.2]}
73... e3 {[%clk 0:00:04.1]} 74. a8=Q {[%clk 0:00:01.5]} 74... e2 {[%clk
0:00:04.4]} 0-1

[Event "*** Titled Tuesday Blitz"]
[Site "Chess.com"]
[Date "2020.11.10"]
[Round "8"]
[White "mapleaff"]
[Black "B-man"]
[Result "1-0"]
[WhiteElo "2405"]
[BlackElo "2550"]
[TimeControl "180+1"]
[EndTime "11:35:27 PST"]
[Termination "mapleaff won on time"]

1. e4 {[%clk 0:03:00.9]} 1... c5 {[%clk 0:02:58.3]} 2. Nf3 {[%clk 0:03:00.5]}
2... d6 {[%clk 0:02:58.2]} 3. Bb5+ {[%clk 0:02:59.2]} 3... Nd7 {[%clk
0:02:52.4]} 4. O-O {[%clk 0:02:57.8]} 4... Nf6 {[%clk 0:02:52]} 5. Re1 {[%clk
0:02:57.2]} 5... a6 {[%clk 0:02:52.6]} 6. Bf1 {[%clk 0:02:55.3]} 6... g5 {[%clk
0:02:43.7]} 7. e5 {[%clk 0:02:47.2]} 7... dxe5 {[%clk 0:02:11.6]} 8. Nxe5 {[%clk
0:02:48.1]} 8... Qc7 {[%clk 0:02:09]} 9. Nxd7 {[%clk 0:02:31.5]} 9... Bxd7
{[%clk 0:02:09.9]} 10. Nc3 {[%clk 0:02:24]} 10... Bc6 {[%clk 0:02:04.4]} 11. d4
{[%clk 0:02:05.6]} 11... O-O-O {[%clk 0:02:01]} 12. Bxg5 {[%clk 0:02:00.8]}
12... Rxd4 {[%clk 0:01:49.1]} 13. Qe2 {[%clk 0:01:45.6]} 13... Rg8 {[%clk
0:01:41.8]} 14. Bxf6 {[%clk 0:01:42.4]} 14... exf6 {[%clk 0:01:37.7]} 15. g3
{[%clk 0:01:40.4]} 15... Bd6 {[%clk 0:01:25.9]} 16. Bg2 {[%clk 0:01:06.6]} 16...
f5 {[%clk 0:00:58.3]} 17. Qh5 {[%clk 0:00:41.2]} 17... Bxg2 {[%clk 0:00:45.7]}
18. Qxf5+ {[%clk 0:00:33.2]} 18... Kb8 {[%clk 0:00:39.5]} 19. Kxg2 {[%clk
0:00:32.4]} 19... Rd2 {[%clk 0:00:08.1]} 20. Ne4 {[%clk 0:00:24.4]} 20... Qc6
{[%clk 0:00:08.5]} 21. Kg1 {[%clk 0:00:23.8]} 21... Rd5 {[%clk 0:00:08.2]} 22.
Qxf7 {[%clk 0:00:16.2]} 22... Rd8 {[%clk 0:00:07.8]} 23. Nc3 {[%clk 0:00:05.9]}
23... Rd2 {[%clk 0:00:05]} 24. Qf6 {[%clk 0:00:05.1]} 24... Bc7 {[%clk
0:00:04.1]} 25. Qxc6 {[%clk 0:00:04.3]} 25... bxc6 {[%clk 0:00:05]} 26. Re2
{[%clk 0:00:04.3]} 26... Rxe2 {[%clk 0:00:05.4]} 27. Nxe2 {[%clk 0:00:05.2]}
27... Rd2 {[%clk 0:00:05.5]} 28. Kf1 {[%clk 0:00:03.8]} 28... Rxc2 {[%clk
0:00:05.7]} 29. b3 {[%clk 0:00:04.4]} 29... a5 {[%clk 0:00:05.6]} 30. a4 {[%clk
0:00:04]} 30... Rb2 {[%clk 0:00:05.7]} 31. Rc1 {[%clk 0:00:03.2]} 31... Bb6
{[%clk 0:00:04.9]} 32. Rc3 {[%clk 0:00:03]} 32... Kb7 {[%clk 0:00:04.8]} 33. Rf3
{[%clk 0:00:03]} 33... Bc7 {[%clk 0:00:04.8]} 34. h4 {[%clk 0:00:03.4]} 34...
Kb6 {[%clk 0:00:04.6]} 35. Kg2 {[%clk 0:00:03.6]} 35... Be5 {[%clk 0:00:04.8]}
36. g4 {[%clk 0:00:03.6]} 36... Bd4 {[%clk 0:00:05.1]} 37. g5 {[%clk 0:00:03.5]}
37... Rd2 {[%clk 0:00:02.1]} 38. Ng3 {[%clk 0:00:03.4]} 38... c4 {[%clk
0:00:01.9]} 39. bxc4 {[%clk 0:00:03]} 39... Bc5 {[%clk 0:00:02.4]} 40. h5 {[%clk
0:00:03.6]} 40... Ra2 {[%clk 0:00:01.8]} 41. g6 {[%clk 0:00:03.9]} 41... hxg6
{[%clk 0:00:02.4]} 42. hxg6 {[%clk 0:00:04.8]} 42... Bd4 {[%clk 0:00:03.1]} 43.
Nf5 {[%clk 0:00:04.2]} 43... Ba1 {[%clk 0:00:02.9]} 44. g7 {[%clk 0:00:04.4]}
44... Bxg7 {[%clk 0:00:03.5]} 45. Nxg7 {[%clk 0:00:05.3]} 45... Rxa4 {[%clk
0:00:04.1]} 46. Nf5 {[%clk 0:00:05.4]} 46... Rxc4 {[%clk 0:00:04]} 47. Ne3
{[%clk 0:00:05.9]} 47... Rc1 {[%clk 0:00:03.7]} 48. Rf8 {[%clk 0:00:06.1]} 48...
a4 {[%clk 0:00:03.9]} 49. Ra8 {[%clk 0:00:06.6]} 49... Kb5 {[%clk 0:00:03.7]}
50. Kf3 {[%clk 0:00:06.9]} 50... Kb4 {[%clk 0:00:04]} 51. Ke2 {[%clk 0:00:07.4]}
51... a3 {[%clk 0:00:04.4]} 52. Kd2 {[%clk 0:00:07.3]} 52... Rh1 {[%clk
0:00:04.1]} 53. Nc2+ {[%clk 0:00:07.5]} 53... Kc5 {[%clk 0:00:03.5]} 54. Rxa3
{[%clk 0:00:08.4]} 54... Rf1 {[%clk 0:00:03.3]} 55. Ke2 {[%clk 0:00:08.7]} 55...
Rc1 {[%clk 0:00:03.4]} 56. Rc3+ {[%clk 0:00:08.5]} 56... Kb6 {[%clk 0:00:02.9]}
57. Rb3+ {[%clk 0:00:07.9]} 57... Kc7 {[%clk 0:00:02.9]} 58. Ne3 {[%clk
0:00:07.9]} 58... Ra1 {[%clk 0:00:03.5]} 59. Rd3 {[%clk 0:00:08]} 59... Ra2+
{[%clk 0:00:03.8]} 60. Rd2 {[%clk 0:00:08.9]} 60... Ra1 {[%clk 0:00:04.7]} 61.
f4 {[%clk 0:00:09]} 61... Ra4 {[%clk 0:00:02.9]} 62. Kf3 {[%clk 0:00:09.1]}
62... Ra3 {[%clk 0:00:03.1]} 63. f5 {[%clk 0:00:08.6]} 63... c5 {[%clk 0:00:04]}
64. Kf4 {[%clk 0:00:08]} 64... Kc6 {[%clk 0:00:03.6]} 65. f6 {[%clk 0:00:08]}
65... Ra4+ {[%clk 0:00:04]} 66. Kf5 {[%clk 0:00:07.2]} 66... c4 {[%clk
0:00:04.9]} 67. f7 {[%clk 0:00:06.3]} 67... Ra8 {[%clk 0:00:03.1]} 68. Kf6
{[%clk 0:00:06]} 68... Kc5 {[%clk 0:00:03.6]} 69. Rc2 {[%clk 0:00:06]} 69... Kd4
{[%clk 0:00:03.8]} 70. Nxc4 {[%clk 0:00:06]} 70... Kd3 {[%clk 0:00:04.2]} 71.
Rc1 {[%clk 0:00:06.3]} 71... Ra6+ {[%clk 0:00:05]} 72. Kg7 {[%clk 0:00:05.5]}
72... Ra7 {[%clk 0:00:05.9]} 73. Ne5+ {[%clk 0:00:05.7]} 73... Ke4 {[%clk
0:00:05.7]} 74. Ng6 {[%clk 0:00:05.5]} 74... Kf5 {[%clk 0:00:04.7]} 75. Rf1+
{[%clk 0:00:04]} 75... Kg5 {[%clk 0:00:04.5]} 76. Rg1+ {[%clk 0:00:04.2]} 76...
Kf5 {[%clk 0:00:03.8]} 77. Kg8 {[%clk 0:00:04.4]} 77... Ke6 {[%clk 0:00:01.2]}
78. f8=Q {[%clk 0:00:04]} 78... Rg7+ {[%clk 0:00:01.4]} 79. Kxg7 {[%clk
0:00:03.5]} 1-0